[Event "European Womens-ch 2025"]
[Site "Rhodes"]
[Date "2025.04.10"]
[Round "10.43"]
[White "Rida, Ruqayyah"]
[Black "Piddubna, Bozhena"]
[Result "1/2-1/2"]
[Annotator "ChessBase"]
[ECO "C61"]
[WhiteElo "2065"]
[BlackElo "2145"]
[PlyCount "106"]
[EventDate "2025.03.29"]
[EventType "swiss"]
[EventCountry "GRE"]
[SourceTitle "playchess.com"]
[Source "ChessBase"]
[SourceQuality "1"]
[TimeControl "40/5400+30:1800+30"]

1. e4 {[%emt 0:00:02]} e5 {[%emt 0:02:39]} 2. Nf3 {[%emt 0:00:15]} Nc6 {[%emt 0:00:17]} 3. Bb5 {[%emt 0:00:23]} Nd4 {[%emt 0:04:33]} 4. Nxd4 {[%emt 0:01:59]} exd4 {[%emt 0:00:05]} 5. O-O {[%emt 0:01:09]} Ne7 {[%emt 0:03:54]} 6. d3 {[%emt 0:02:00]} Ng6 {[%emt 0:05:26]} 7. f4 {[%emt 0:10:56]} Be7 {[%emt 0:00:23]} 8. Nd2 {[%emt 0:00:26]} O-O {[%emt 0:11:27]} 9. f5 {[%emt 0:05:20]} Ne5 {[%emt 0:00:11]} 10. Nf3 {[%emt 0:00:51]} d6 {[%emt 0:16:45]} 11. Bf4 {[%emt 0:06:32]} Bf6 {[%emt 0:01:45]} 12. Kh1 {[%emt 0:05:43]} c5 {[%emt 0:06:42]} 13. Qe1 {[%emt 0:03:01]} a6 {[%emt 0:06:13]} 14. Ba4 {[%emt 0:00:35]} b5 {[%emt 0:07:35]} 15. Bb3 {[%emt 0:00:31]} Bb7 {[%emt 0:00:19]} 16. Qg3 {[%emt 0:09:50]} c4 {[%emt 0:09:56]} 17. Bxe5 {[%emt 0:01:46]} dxe5 {[%emt 0:00:26]} 18. dxc4 {[%emt 0:00:28]} Bxe4 {[%emt 0:01:27]} 19. cxb5 {[%emt 0:01:27]} Bxf3 {[%emt 0:01:01]} 20. Qxf3 {[%emt 0:00:50]} axb5 {[%emt 0:00:06]} 21. Rad1 {[%emt 0:03:01]} Ra6 {[%emt 0:02:58]} 22. Rfe1 {[%emt 0:01:39]} Qc7 {[%emt 0:00:24]} 23. Re2 {[%emt 0:04:12]} Bg5 {[%emt 0:06:04]} 24. Qe4 {[%emt 0:01:26]} Be3 {[%emt 0:00:43]} 25. Rf1 {[%emt 0:02:31]} Qe7 {[%emt 0:01:34]} 26. g3 {[%emt 0:01:37]} Rh6 {[%emt 0:01:58]} 27. Kg2 {[%emt 0:00:35]} Qg5 {[%emt 0:00:39]} 28. h4 {[%emt 0:04:58]} Qe7 {[%emt 0:00:42]} 29. c3 {[%emt 0:02:39]} Qd6 {[%emt 0:01:03]} 30. Rd1 {[%emt 0:01:15]} Qc5 {[%emt 0:00:38]} 31. Rc2 {[%emt 0:03:17]} Qc6 {[%emt 0:03:31]} 32. Bd5 {[%emt 0:01:27]} Qe8 {[%emt 0:00:34]} 33. Rd3 {[%emt 0:02:53]} Rd6 {[%emt 0:01:09]} 34. Re2 {[%emt 0:01:27]} Qd7 {[%emt 0:00:50]} 35. Bb3 {[%emt 0:01:27]} Re8 {[%emt 0:01:26]} 36. Re1 {[%emt 0:01:40]} Kf8 {[%emt 0:01:15]} 37. f6 {[%emt 0:03:39]} Qc6 {[%emt 0:00:01]} 38. Qxc6 {[%emt 0:00:31]} Rxc6 {[%emt 0:00:01]} 39. cxd4 {[%emt 0:01:36]} exd4 {[%emt 0:00:07]} 40. fxg7+ {[%emt 0:00:00]} Kxg7 {[%emt 0:00:00]} 41. Rxd4 {[%emt 0:00:27]} Bxd4 {[%emt 0:01:43]} 42. Rxe8 {[%emt 0:01:40]} Bxb2 {[%emt 0:02:57]} 43. Re7 {[%emt 0:02:42]} Rf6 {[%emt 0:00:13]} 44. Rb7 {[%emt 0:00:24]} Rf5 {[%emt 0:01:31]} 45. g4 {[%emt 0:03:58]} Rf4 {[%emt 0:01:12]} 46. Kg3 {[%emt 0:00:24]} Be5 {[%emt 0:00:25]} 47. g5 {[%emt 0:04:39]} h6 {[%emt 0:11:40]} 48. Rxb5 {[%emt 0:03:13]} Bc7 {[%emt 0:00:06]} 49. Rb7 {[%emt 0:02:41]} Be5 {[%emt 0:00:07]} 50. Kg2 {[%emt 0:08:27]} hxg5 {[%emt 0:00:14]} 51. hxg5 {[%emt 0:00:07]} Kg6 {[%emt 0:04:57]} 52. Bd5 {[%emt 0:03:40]} Kxg5 {[%emt 0:02:37]} 53. Bxf7 {[%emt 0:00:34]} Bd6 {[%emt 0:02:28]} 1/2-1/2

[Event "European Womens-ch 2025"]
[Site "Rhodes"]
[Date "2025.04.10"]
[Round "10.44"]
[White "Korenova, Martina"]
[Black "Zaksaite, Salomeja"]
[Result "0-1"]
[Annotator "ChessBase"]
[ECO "E70"]
[WhiteElo "2045"]
[BlackElo "2137"]
[PlyCount "118"]
[EventDate "2025.03.29"]
[EventType "swiss"]
[EventCountry "GRE"]
[SourceTitle "playchess.com"]
[Source "ChessBase"]
[SourceQuality "1"]
[TimeControl "40/5400+30:1800+30"]

1. Nf3 {[%emt 0:00:06]} Nf6 {[%emt 0:00:52]} 2. c4 {[%emt 0:00:10]} g6 {[%emt 0:00:12]} 3. Nc3 {[%emt 0:00:12]} Bg7 {[%emt 0:00:07]} 4. e4 {[%emt 0:00:32]} d6 {[%emt 0:00:08]} 5. d4 {[%emt 0:00:16]} O-O {[%emt 0:00:09]} 6. h3 {[%emt 0:00:17]} Nbd7 {[%emt 0:00:56]} 7. e5 {[%emt 0:03:19]} Ne8 {[%emt 0:00:21]} 8. Bf4 {[%emt 0:00:38]} c6 {[%emt 0:01:04]} 9. Be2 {[%emt 0:08:58]} dxe5 {[%emt 0:01:22]} 10. dxe5 {[%emt 0:00:06]} Nc7 {[%emt 0:00:14]} 11. Bh2 {[%emt 0:05:37]} Ne6 {[%emt 0:03:20]} 12. Qc2 {[%emt 0:01:29]} Qa5 {[%emt 0:02:39]} 13. Qe4 {[%emt 0:04:45]} Ndc5 {[%emt 0:01:05]} 14. Qe3 {[%emt 0:03:30]} Na4 {[%emt 0:00:39]} 15. O-O {[%emt 0:02:54]} Nxc3 {[%emt 0:00:53]} 16. bxc3 {[%emt 0:01:00]} Bd7 {[%emt 0:13:06]} 17. Rfd1 {[%emt 0:06:55]} Rad8 {[%emt 0:00:15]} 18. Nd4 {[%emt 0:00:53]} Bc8 {[%emt 0:13:24]} 19. Bf3 {[%emt 0:02:13]} Qc5 {[%emt 0:09:27]} 20. Be2 {[%emt 0:05:26]} Qa5 {[%emt 0:02:12]} 21. Bg3 {[%emt 0:10:24]} c5 {[%emt 0:05:13]} 22. Nb3 {[%emt 0:00:14]} Rxd1+ {[%emt 0:01:01]} 23. Bxd1 {[%emt 0:00:05]} Qa3 {[%emt 0:06:55]} 24. Bf3 {[%emt 0:05:25]} Bd7 {[%emt 0:07:37]} 25. Qc1 {[%emt 0:06:43]} Qa4 {[%emt 0:00:45]} 26. Bd5 {[%emt 0:00:24]} b6 {[%emt 0:01:16]} 27. Qd2 {[%emt 0:06:19]} Nc7 {[%emt 0:02:19]} 28. Re1 {[%emt 0:01:21]} Be6 {[%emt 0:02:21]} 29. Bxe6 {[%emt 0:06:21]} Nxe6 {[%emt 0:00:08]} 30. Qe2 {[%emt 0:04:00]} Rd8 {[%emt 0:00:15]} 31. Bh4 {[%emt 0:01:55]} Qd7 {[%emt 0:01:12]} 32. Qe4 {[%emt 0:01:17]} g5 {[%emt 0:10:22]} 33. Bg3 {[%emt 0:00:04]} h5 {[%emt 0:00:38]} 34. h4 {[%emt 0:02:25]} Qd3 {[%emt 0:02:32]} 35. hxg5 {[%emt 0:02:06]} Qxe4 {[%emt 0:00:39]} 36. Rxe4 {[%emt 0:00:04]} Rd1+ {[%emt 0:03:58]} 37. Kh2 {[%emt 0:00:09]} Nxg5 {[%emt 0:00:09]} 38. Re3 {[%emt 0:02:27]} a5 {[%emt 0:01:54]} 39. f4 {[%emt 0:02:29]} Ne6 {[%emt 0:00:05]} 40. f5 {[%emt 0:00:00]} Bh6 {[%emt 0:00:00]} 41. Re1 {[%emt 0:13:52]} Rxe1 {[%emt 0:07:35]} 42. Bxe1 {[%emt 0:00:05]} Ng7 {[%emt 0:00:18]} 43. f6 {[%emt 0:00:18]} exf6 {[%emt 0:00:11]} 44. exf6 {[%emt 0:00:04]} Ne8 {[%emt 0:00:20]} 45. Bd2 {[%emt 0:00:27]} Kh7 {[%emt 0:02:30]} 46. Bxh6 {[%emt 0:00:34]} Kxh6 {[%emt 0:00:06]} 47. Kg3 {[%emt 0:02:50]} Kg5 {[%emt 0:01:23]} 48. Nd2 {[%emt 0:03:10]} Nxf6 {[%emt 0:11:01]} 49. Kf3 {[%emt 0:00:34]} a4 {[%emt 0:03:30]} 50. Nf1 {[%emt 0:04:45]} Kf5 {[%emt 0:00:36]} 51. Nd2 {[%emt 0:01:35]} Ng4 {[%emt 0:05:58]} 52. a3 {[%emt 0:03:55]} h4 {[%emt 0:02:18]} 53. Ke2 {[%emt 0:01:10]} Ne5 {[%emt 0:01:55]} 54. Kf2 {[%emt 0:01:43]} Kf4 {[%emt 0:00:11]} 55. Ke2 {[%emt 0:00:27]} Ng4 {[%emt 0:02:28]} 56. Nf1 {[%emt 0:07:42]} Ne5 {[%emt 0:00:48]} 57. Ne3 {[%emt 0:00:52]} Ke4 {[%emt 0:00:35]} 58. Kd2 {[%emt 0:00:17]} f5 {[%emt 0:00:23]} 59. Ke2 {[%emt 0:00:58]} f4 {[%emt 0:00:06]} 0-1

[Event "European Womens-ch 2025"]
[Site "Rhodes"]
[Date "2025.04.10"]
[Round "10.45"]
[White "Shuqja, Klean"]
[Black "Ciolacu, Alessia-Mihaela"]
[Result "1/2-1/2"]
[Annotator "ChessBase"]
[ECO "B52"]
[WhiteElo "2049"]
[BlackElo "2136"]
[PlyCount "148"]
[EventDate "2025.03.29"]
[EventType "swiss"]
[EventCountry "GRE"]
[SourceTitle "playchess.com"]
[Source "ChessBase"]
[SourceQuality "1"]
[TimeControl "40/5400+30:1800+30"]

1. e4 {[%emt 1:31:00]} c5 {[%emt 0:00:24]} 2. Nf3 {[%emt 0:00:00]} d6 {[%emt 0:00:05]} 3. Bb5+ {[%emt 0:00:00]} Bd7 {[%emt 0:00:12]} 4. Bxd7+ {[%emt 0:00:00]} Nxd7 {[%emt 0:00:14]} 5. c4 {[%emt 0:00:00]} Ne5 {[%emt 0:00:47]} 6. O-O {[%emt 0:00:00]} Nf6 {[%emt 0:00:30]} 7. d3 {[%emt 0:00:00]} g6 {[%emt 0:15:05]} 8. Nc3 {[%emt 0:00:00]} Bg7 {[%emt 0:00:41]} 9. h3 {[%emt 0:00:00]} O-O {[%emt 0:06:48]} 10. Be3 {[%emt 0:00:00]} Nfd7 {[%emt 0:07:56]} 11. Ne1 {[%emt 0:00:00]} a6 {[%emt 0:06:56]} 12. Nc2 {[%emt 0:00:00]} Rb8 {[%emt 0:08:13]} 13. a4 {[%emt 0:00:00]} Re8 {[%emt 0:01:43]} 14. Qd2 {[%emt 0:00:00]} Nc6 {[%emt 0:01:07]} 15. f4 {[%emt 0:00:00]} Qa5 {[%emt 0:11:19]} 16. Bf2 {[%emt 0:00:00]} Nd4 {[%emt 0:06:03]} 17. Nxd4 {[%emt 0:00:00]} cxd4 {[%emt 0:00:34]} 18. Nb1 {[%emt 0:00:00]} Qxd2 {[%emt 0:12:24]} 19. Nxd2 {[%emt 0:00:00]} Nc5 {[%emt 0:00:29]} 20. Ra3 {[%emt 0:00:00]} a5 {[%emt 0:00:25]} 21. Nf3 {[%emt 0:00:00]} e5 {[%emt 0:13:43]} 22. g4 Bf8 {[%emt 0:00:29]} 23. f5 {[%emt 0:00:00]} gxf5 24. gxf5 {[%emt 0:11:30]} f6 {[%emt 0:02:02]} 25. Be1 {[%emt 0:00:00]} Ra8 {[%emt 0:02:38]} 26. Bd2 {[%emt 0:01:00]} Kf7 27. Rfa1 {[%emt 0:00:00]} Ra6 {[%emt 0:01:36]} 28. Bxa5 {[%emt 0:00:00]} Rea8 {[%emt 0:00:31]} 29. Bd2 {[%emt 0:00:00]} Nxa4 {[%emt 0:01:20]} 30. b4 {[%emt 0:00:00]} Nc5 {[%emt 0:00:34]} 31. Rxa6 {[%emt 0:00:00]} Rxa6 {[%emt 0:00:01]} 32. Rxa6 {[%emt 0:00:00]} Nxa6 {[%emt 0:00:02]} 33. Kf2 {[%emt 0:00:00]} Ke8 {[%emt 0:01:02]} 34. Ke2 {[%emt 0:00:00]} d5 {[%emt 0:00:34]} 35. c5 {[%emt 0:03:01]} dxe4 {[%emt 0:00:22]} 36. dxe4 {[%emt 0:00:02]} Kd7 {[%emt 0:00:16]} 37. Kd3 {[%emt 0:00:11]} b6 {[%emt 0:01:09]} 38. cxb6 {[%emt 0:01:34]} Bxb4 {[%emt 0:00:40]} 39. Bxb4 {[%emt 0:00:43]} Nxb4+ {[%emt 0:00:02]} 40. Kc4 {[%emt 0:00:00]} Na6 {[%emt 0:00:00]} 41. Kb5 {[%emt 0:01:09]} Nb8 {[%emt 0:01:43]} 42. Ne1 {[%emt 0:00:40]} Kd6 {[%emt 0:03:45]} 43. Nd3 {[%emt 0:03:13]} Kd7 {[%emt 0:06:04]} 44. Kc5 {[%emt 0:02:58]} Nc6 {[%emt 0:01:16]} 45. h4 {[%emt 0:08:28]} h5 {[%emt 0:06:17]} 46. b7 {[%emt 0:06:57]} Nb8 {[%emt 0:08:51]} 47. Kd5 {[%emt 0:03:00]} Nc6 {[%emt 0:01:07]} 48. Nc5+ {[%emt 0:02:07]} Kc7 {[%emt 0:00:05]} 49. Ke6 {[%emt 0:00:42]} Nd8+ {[%emt 0:01:35]} 50. Kxf6 {[%emt 0:00:31]} Nxb7 {[%emt 0:00:01]} 51. Nd3 {[%emt 0:01:03]} Kd6 {[%emt 0:00:31]} 52. Nxe5 {[%emt 0:01:48]} Nc5 {[%emt 0:01:35]} 53. Nc4+ {[%emt 0:00:28]} Kc6 {[%emt 0:00:41]} 54. Nd2 {[%emt 0:00:52]} Kd6 {[%emt 0:02:30]} 55. e5+ {[%emt 0:01:03]} Kd5 {[%emt 0:00:05]} 56. e6 {[%emt 0:00:33]} Nb7 {[%emt 0:00:54]} 57. Kg6 {[%emt 0:03:42]} Nd6 {[%emt 0:02:20]} 58. e7 {[%emt 0:00:22]} Ne8 {[%emt 0:00:41]} 59. Kf7 {[%emt 0:00:46]} Nd6+ {[%emt 0:00:12]} 60. Kg6 {[%emt 0:00:05]} Ne8 {[%emt 0:00:27]} 61. Kxh5 {[%emt 0:00:17]} Kd6 {[%emt 0:00:24]} 62. Kg6 {[%emt 0:00:38]} Kxe7 {[%emt 0:00:01]} 63. h5 {[%emt 0:00:24]} Kf8 {[%emt 0:01:05]} 64. h6 {[%emt 0:00:30]} Nd6 {[%emt 0:00:37]} 65. h7 {[%emt 0:00:28]} Nf7 {[%emt 0:00:04]} 66. Kf6 {[%emt 0:01:05]} d3 {[%emt 0:00:38]} 67. Nf3 {[%emt 0:00:22]} Nh8 {[%emt 0:00:07]} 68. Nd2 {[%emt 0:00:35]} Nf7 {[%emt 0:00:02]} 69. Nc4 {[%emt 0:00:24]} Nh8 {[%emt 0:00:04]} 70. Nd2 {[%emt 0:00:44]} Nf7 {[%emt 0:00:05]} 71. Kg6 {[%emt 0:00:33]} Nh8+ {[%emt 0:00:09]} 72. Kf6 {[%emt 0:00:12]} Nf7 {[%emt 0:00:11]} 73. Nf3 {[%emt 0:00:10]} Nh8 {[%emt 0:00:07]} 74. Nd2 {[%emt 0:01:40]} Nf7 1/2-1/2

[Event "European Womens-ch 2025"]
[Site "Rhodes"]
[Date "2025.04.10"]
[Round "10.46"]
[White "Chelushkina, Irina"]
[Black "Subramanian, Anusha"]
[Result "1-0"]
[Annotator "ChessBase"]
[ECO "A12"]
[WhiteElo "2134"]
[BlackElo "2026"]
[PlyCount "179"]
[EventDate "2025.03.29"]
[EventType "swiss"]
[EventCountry "GRE"]
[SourceTitle "playchess.com"]
[Source "ChessBase"]
[SourceQuality "1"]
[TimeControl "40/5400+30:1800+30"]

1. Nf3 {[%emt 0:00:05]} d5 {[%emt 0:00:06]} 2. g3 {[%emt 0:00:28]} c6 {[%emt 0:00:07]} 3. Bg2 {[%emt 0:00:22]} Bg4 {[%emt 0:00:08]} 4. c4 {[%emt 0:01:57]} e6 {[%emt 0:00:10]} 5. O-O {[%emt 0:01:47]} Nd7 {[%emt 0:00:32]} 6. b3 {[%emt 0:00:31]} Ngf6 {[%emt 0:00:23]} 7. Bb2 {[%emt 0:00:05]} Be7 {[%emt 0:00:32]} 8. d3 {[%emt 0:01:36]} a5 {[%emt 0:00:43]} 9. a3 {[%emt 0:00:05]} O-O {[%emt 0:00:55]} 10. Nbd2 {[%emt 0:00:30]} Qc7 {[%emt 0:02:41]} 11. Rc1 {[%emt 0:00:24]} Rad8 {[%emt 0:04:13]} 12. h3 {[%emt 0:07:06]} Bh5 {[%emt 0:03:09]} 13. cxd5 {[%emt 0:01:38]} exd5 {[%emt 0:01:14]} 14. Nh4 {[%emt 0:04:10]} Rfe8 {[%emt 0:06:32]} 15. g4 {[%emt 0:05:36]} Bg6 {[%emt 0:03:04]} 16. Nxg6 {[%emt 0:00:16]} hxg6 {[%emt 0:00:15]} 17. e3 {[%emt 0:00:49]} Qb8 {[%emt 0:07:25]} 18. Qc2 {[%emt 0:03:07]} Bd6 {[%emt 0:03:09]} 19. Nf3 {[%emt 0:01:13]} Nf8 {[%emt 0:10:35]} 20. Rb1 {[%emt 0:05:42]} Ne6 {[%emt 0:02:27]} 21. b4 {[%emt 0:00:24]} axb4 {[%emt 0:00:24]} 22. axb4 {[%emt 0:00:01]} Nc7 {[%emt 0:06:02]} 23. Nd4 {[%emt 0:02:21]} Qc8 {[%emt 0:03:38]} 24. Qb3 {[%emt 0:02:32]} Qd7 {[%emt 0:00:41]} 25. Rfc1 {[%emt 0:00:32]} Be5 {[%emt 0:05:57]} 26. Ra1 {[%emt 0:06:27]} Ra8 {[%emt 0:06:58]} 27. Ra5 {[%emt 0:12:58]} Rxa5 {[%emt 0:07:52]} 28. bxa5 {[%emt 0:00:03]} Ne6 {[%emt 0:01:23]} 29. Nxe6 {[%emt 0:03:10]} Rxe6 {[%emt 0:00:41]} 30. Rb1 {[%emt 0:09:25]} Bxb2 {[%emt 0:01:48]} 31. Qxb2 {[%emt 0:00:02]} Re7 {[%emt 0:00:28]} 32. Qd4 {[%emt 0:00:28]} Ne8 {[%emt 0:06:59]} 33. Rb6 {[%emt 0:00:28]} Qd6 {[%emt 0:05:38]} 34. Qc3 {[%emt 0:04:53]} Rc7 {[%emt 0:02:46]} 35. d4 {[%emt 0:03:05]} Nf6 {[%emt 0:00:49]} 36. Qb2 {[%emt 0:00:42]} Qd7 {[%emt 0:00:49]} 37. Qc2 {[%emt 0:02:06]} Qd6 {[%emt 0:00:31]} 38. a6 {[%emt 0:05:05]} bxa6 {[%emt 0:00:23]} 39. Rxa6 {[%emt 0:00:02]} Qd7 {[%emt 0:03:12]} 40. Bf3 {[%emt 0:00:00]} Qc8 {[%emt 0:00:00]} 41. Ra5 {[%emt 0:06:53]} Qb7 {[%emt 0:05:15]} 42. Kg2 {[%emt 0:01:12]} Nd7 {[%emt 0:02:18]} 43. Qa2 {[%emt 0:00:55]} Nb6 {[%emt 0:04:32]} 44. Qb3 {[%emt 0:03:14]} Re7 {[%emt 0:05:36]} 45. Ra1 {[%emt 0:05:16]} Qc7 {[%emt 0:04:16]} 46. Be2 {[%emt 0:03:50]} Re8 {[%emt 0:01:12]} 47. Rc1 {[%emt 0:01:49]} Re6 {[%emt 0:05:09]} 48. Qa3 {[%emt 0:02:34]} Nd7 {[%emt 0:01:02]} 49. Qa8+ {[%emt 0:02:01]} Kh7 {[%emt 0:01:18]} 50. Rb1 {[%emt 0:00:50]} Qd6 {[%emt 0:03:13]} 51. Rb7 {[%emt 0:02:55]} f5 {[%emt 0:04:33]} 52. Qd8 {[%emt 0:04:12]} Nf6 {[%emt 0:01:08]} 53. Qxd6 {[%emt 0:05:03]} Rxd6 {[%emt 0:00:01]} 54. g5 {[%emt 0:00:07]} Nd7 {[%emt 0:01:31]} 55. Rc7 {[%emt 0:00:27]} Nf8 {[%emt 0:00:13]} 56. h4 {[%emt 0:00:10]} Ne6 {[%emt 0:00:05]} 57. Rc8 {[%emt 0:00:17]} Nd8 {[%emt 0:01:02]} 58. Bd3 {[%emt 0:00:23]} Kg8 {[%emt 0:00:58]} 59. Bc2 {[%emt 0:02:52]} Rd7 {[%emt 0:00:17]} 60. Ba4 {[%emt 0:00:11]} Rd6 {[%emt 0:00:46]} 61. Bxc6 {[%emt 0:00:38]} Kf7 {[%emt 0:00:11]} 62. Rc7+ {[%emt 0:00:38]} Kf8 {[%emt 0:00:29]} 63. Ba4 {[%emt 0:01:14]} Ne6 {[%emt 0:00:14]} 64. Rc8+ {[%emt 0:00:20]} Nd8 {[%emt 0:00:41]} 65. Ra8 {[%emt 0:00:22]} Ke7 {[%emt 0:00:10]} 66. Kg3 {[%emt 0:00:21]} Kf8 {[%emt 0:01:08]} 67. Kf4 {[%emt 0:01:06]} Ke7 {[%emt 0:00:38]} 68. Ra7+ {[%emt 0:00:32]} Kf8 {[%emt 0:00:11]} 69. Ke5 {[%emt 0:00:59]} Re6+ {[%emt 0:00:12]} 70. Kxd5 {[%emt 0:00:17]} Re4 {[%emt 0:00:10]} 71. Kd6 {[%emt 0:03:58]} f4 {[%emt 0:01:09]} 72. Bc2 {[%emt 0:01:46]} Re6+ {[%emt 0:00:09]} 73. Kd5 {[%emt 0:00:02]} fxe3 {[%emt 0:00:19]} 74. fxe3 {[%emt 0:00:00]} Rxe3 {[%emt 0:00:33]} 75. Bxg6 {[%emt 0:00:04]} Re6 {[%emt 0:01:06]} 76. h5 {[%emt 0:00:11]} Rb6 {[%emt 0:00:27]} 77. Rd7 {[%emt 0:00:37]} Ne6 {[%emt 0:00:42]} 78. Rf7+ {[%emt 0:00:29]} Kg8 {[%emt 0:00:11]} 79. Rf5 {[%emt 0:01:59]} Nc7+ {[%emt 0:00:50]} 80. Kc5 {[%emt 0:00:27]} Ra6 {[%emt 0:00:36]} 81. d5 {[%emt 0:00:18]} Ra5+ {[%emt 0:00:33]} 82. Kc6 {[%emt 0:00:20]} Nb5 {[%emt 0:00:28]} 83. Kb6 {[%emt 0:00:18]} Ra8 {[%emt 0:00:34]} 84. Kxb5 {[%emt 0:00:07]} Rb8+ {[%emt 0:00:04]} 85. Kc6 {[%emt 0:00:20]} Rc8+ {[%emt 0:00:11]} 86. Kd7 {[%emt 0:00:17]} Ra8 {[%emt 0:00:06]} 87. d6 {[%emt 0:00:05]} Ra7+ {[%emt 0:00:09]} 88. Ke6 {[%emt 0:00:06]} Ra6 {[%emt 0:00:16]} 89. Rc5 {[%emt 0:00:11]} Ra8 {[%emt 0:00:10]} 90. d7 {[%emt 0:00:12]} 1-0

[Event "European Womens-ch 2025"]
[Site "Rhodes"]
[Date "2025.04.10"]
[Round "10.47"]
[White "Caku, Kler"]
[Black "Cornileau, Juliette"]
[Result "1/2-1/2"]
[Annotator "ChessBase"]
[ECO "B59"]
[WhiteElo "2036"]
[BlackElo "2130"]
[PlyCount "78"]
[EventDate "2025.03.29"]
[EventType "swiss"]
[EventCountry "GRE"]
[SourceTitle "playchess.com"]
[Source "ChessBase"]
[SourceQuality "1"]
[TimeControl "40/5400+30:1800+30"]

1. e4 {[%emt 0:00:02]} c5 {[%emt 0:01:41]} 2. Nf3 {[%emt 0:00:36]} d6 {[%emt 0:00:05]} 3. d4 {[%emt 0:00:05]} cxd4 {[%emt 0:00:03]} 4. Nxd4 {[%emt 0:00:05]} Nf6 {[%emt 0:00:03]} 5. Nc3 {[%emt 0:00:14]} Nc6 {[%emt 0:00:04]} 6. Be2 {[%emt 0:00:20]} e5 {[%emt 0:00:56]} 7. Nb3 {[%emt 0:00:40]} Be7 {[%emt 0:00:07]} 8. O-O {[%emt 0:00:26]} a5 {[%emt 0:00:13]} 9. Be3 {[%emt 0:13:49]} O-O {[%emt 0:02:59]} 10. Nd2 {[%emt 0:02:06]} Nd4 {[%emt 0:29:24]} 11. Nc4 {[%emt 0:13:47]} b5 {[%emt 0:01:25]} 12. Bxd4 {[%emt 0:00:59]} bxc4 {[%emt 0:00:28]} 13. Be3 {[%emt 0:00:32]} Bb7 {[%emt 0:15:35]} 14. Bxc4 {[%emt 0:02:26]} Nxe4 {[%emt 0:00:17]} 15. Nxe4 {[%emt 0:01:47]} Bxe4 {[%emt 0:00:06]} 16. Bd5 {[%emt 0:00:27]} Bxd5 {[%emt 0:00:06]} 17. Qxd5 {[%emt 0:00:04]} Rc8 {[%emt 0:02:59]} 18. c4 {[%emt 0:07:15]} a4 {[%emt 0:02:38]} 19. b4 {[%emt 0:12:21]} axb3 {[%emt 0:08:35]} 20. axb3 {[%emt 0:00:05]} Rb8 {[%emt 0:00:15]} 21. Rfb1 {[%emt 0:02:41]} Qd7 {[%emt 0:12:01]} 22. b4 {[%emt 0:03:21]} Qb7 {[%emt 0:04:42]} 23. Qxb7 {[%emt 0:05:49]} Rxb7 {[%emt 0:00:56]} 24. b5 {[%emt 0:00:24]} f5 {[%emt 0:01:19]} 25. Ra7 {[%emt 0:01:34]} Rfb8 {[%emt 0:00:50]} 26. Rba1 {[%emt 0:08:11]} f4 {[%emt 0:00:52]} 27. Rxb7 {[%emt 0:01:26]} Rxb7 {[%emt 0:00:08]} 28. Ra8+ {[%emt 0:02:20]} Kf7 {[%emt 0:00:10]} 29. Ba7 {[%emt 0:00:56]} d5 {[%emt 0:05:18]} 30. b6 {[%emt 0:03:26]} Bc5 {[%emt 0:01:00]} 31. cxd5 {[%emt 0:00:34]} Bxb6 {[%emt 0:00:09]} 32. Bxb6 {[%emt 0:00:44]} Rxb6 {[%emt 0:00:05]} 33. f3 {[%emt 0:00:56]} Rb7 {[%emt 0:06:36]} 34. Kf2 {[%emt 0:02:57]} Rb2+ {[%emt 0:00:40]} 35. Kf1 {[%emt 0:01:02]} Rd2 {[%emt 0:01:04]} 36. Ra7+ {[%emt 0:00:48]} Kf6 {[%emt 0:00:11]} 37. Ra6+ {[%emt 0:00:20]} Kf7 {[%emt 0:00:41]} 38. Ra7+ {[%emt 0:00:06]} Kf6 {[%emt 0:00:09]} 39. Ra6+ {[%emt 0:00:05]} Kf7 {[%emt 0:03:52]} 1/2-1/2

[Event "European Womens-ch 2025"]
[Site "Rhodes"]
[Date "2025.04.10"]
[Round "10.48"]
[White "Nahapetyan, Ani"]
[Black "Berke, Ana"]
[Result "0-1"]
[Annotator "ChessBase"]
[ECO "B76"]
[WhiteElo "1887"]
[BlackElo "2119"]
[PlyCount "62"]
[EventDate "2025.03.29"]
[EventType "swiss"]
[EventCountry "GRE"]
[SourceTitle "playchess.com"]
[Source "ChessBase"]
[SourceQuality "1"]
[TimeControl "40/5400+30:1800+30"]

1. e4 {[%emt 0:00:05]} c5 {[%emt 0:00:04]} 2. Nf3 {[%emt 1:31:25]} d6 {[%emt 0:00:06]} 3. d4 {[%emt 0:00:00]} cxd4 {[%emt 0:00:05]} 4. Nxd4 {[%emt 0:00:00]} Nf6 {[%emt 0:00:05]} 5. Nc3 {[%emt 0:00:00]} g6 {[%emt 0:00:06]} 6. f3 {[%emt 0:00:00]} Bg7 {[%emt 0:00:08]} 7. Be3 {[%emt 0:00:00]} O-O {[%emt 0:00:09]} 8. Be2 {[%emt 0:00:00]} Nc6 {[%emt 0:01:06]} 9. Qd2 {[%emt 0:00:00]} d5 {[%emt 0:10:46]} 10. Nxc6 {[%emt 0:00:00]} bxc6 {[%emt 0:00:08]} 11. Rd1 {[%emt 0:04:30]} Qc7 {[%emt 0:05:43]} 12. exd5 {[%emt 0:00:00]} cxd5 {[%emt 0:00:56]} 13. Nb5 {[%emt 0:00:00]} Qb8 {[%emt 0:05:48]} 14. c3 {[%emt 0:00:00]} Bd7 {[%emt 0:03:18]} 15. Nd4 {[%emt 0:00:00]} e5 {[%emt 0:01:08]} 16. Nb3 {[%emt 0:00:00]} Ba4 {[%emt 0:02:04]} 17. Ra1 {[%emt 0:00:00]} Bxb3 {[%emt 0:07:24]} 18. axb3 {[%emt 0:00:00]} Qxb3 {[%emt 0:01:16]} 19. O-O {[%emt 0:00:00]} a5 {[%emt 0:02:53]} 20. Ra3 {[%emt 0:00:00]} Qb7 {[%emt 0:01:49]} 21. Rfa1 {[%emt 0:00:00]} Rfb8 {[%emt 0:05:18]} 22. b3 {[%emt 0:00:00]} h5 {[%emt 0:01:21]} 23. Bd1 {[%emt 0:00:00]} d4 {[%emt 0:09:44]} 24. cxd4 {[%emt 0:00:00]} exd4 {[%emt 0:00:14]} 25. Bf4 {[%emt 0:00:00]} Re8 {[%emt 0:03:41]} 26. Rxa5 {[%emt 0:00:00]} Rxa5 {[%emt 0:01:09]} 27. Qxa5 {[%emt 0:00:00]} Nd5 {[%emt 0:01:22]} 28. Bd2 {[%emt 0:00:00]} Nc3 {[%emt 0:06:47]} 29. Qa3 {[%emt 0:00:00]} Qb6 {[%emt 0:01:30]} 30. Kh1 {[%emt 0:00:00]} d3 {[%emt 0:01:25]} 31. h3 {[%emt 0:00:00]} Qf2 {[%emt 0:01:13]} 0-1